bitfinex-derivatives/quotes_ETHF0:USTF0_20260204
["timestamp","ask_amount","ask_price","bid_price","bid_amount"]
[1770190688577,0.2,2281.1,2280.6,2.51298701]
[1770190689479,4.041,2281.0,2280.6,2.51298701]
[1770190691486,4.388,2281.4,2280.6,2.51298701]
[1770190691780,6.912,2281.4,2280.7,2.51298701]
[1770190693782,40.8,2281.8,2280.9,2.51298701]
[1770190693983,4.04,2281.7,2281.0,2.51298701]
[1770190694384,40.8,2281.8,2281.0,2.51298701]
[1770190694578,4.042,2281.6,2281.0,2.51298701]
[1770190697187,40.8,2281.8,2281.0,2.51298701]
[1770190697388,4.049,2281.7,2281.0,2.51298701]
[1770190698385,40.8,2281.6,2281.0,2.51298701]
[1770190702892,4.049,2281.7,2281.0,2.51298701]
[1770190703194,2.288,2281.6,2281.0,2.51298701]
[1770190704496,6.59856064,2282.7,2281.4,2.61280936]
[1770190704692,6.59856064,2282.8,2281.6,2.50308936]
[1770190704898,3.088,2282.7,2282.0,2.50308936]
[1770190705195,4.071,2282.6,2282.0,2.50308936]
[1770190705593,4.071,2282.7,2282.0,2.50721965]
[1770190706298,4.09005623,2282.7,2282.0,2.50721965]
[1770190706596,4.09515695,2282.7,2282.0,2.50721965]
[1770190706798,4.07610072,2282.7,2282.0,2.50721965]
[1770190707401,0.01002134,2282.6,2282.0,0.00413029]
[1770190707700,4.07610072,2282.7,2282.0,2.5117371]
[1770190708101,0.01002134,2282.6,2282.0,0.00413029]
[1770190710803,4.07610072,2282.7,2282.0,2.51447923]
[1770190710999,0.00510072,2282.7,2282.0,2.51447923]
[1770190711199,4.067,2282.6,2282.0,2.51447923]
[1770190711401,4.067,2282.6,2282.0,2.62416923]
[1770190712504,4.067,2282.7,2282.0,2.62416923]
[1770190713400,1.43536436,2282.8,2282.0,2.62416923]
[1770190713604,4.066,2282.7,2282.0,2.62416923]
[1770190713802,0.0042727,2282.8,2282.0,4.05953359]
[1770190714005,4.066,2283.0,2282.1,2.61875331]
[1770190714808,4.066,2283.4,2282.5,2.49988222]
[1770190715004,5.82136436,2283.6,2282.5,2.49988222]
[1770190715308,1.334,2283.5,2282.5,2.49988222]
[1770190716908,1.334,2283.5,2282.5,2.60955222]
[1770190717207,1.334,2283.5,2282.6,1.43536436]
[1770190717501,1.43536436,2283.4,2282.7,2.49875013]
[1770190717706,1.334,2283.5,2282.7,2.49875013]
[1770190718106,4.06,2283.5,2282.7,2.49875013]
[1770190719205,1.43536436,2283.0,2282.5,2.60661389]
[1770190720202,1.43536436,2282.8,2282.1,0.10969]
[1770190720404,1.43536436,2283.0,2282.1,2.62269]
[1770190721601,1.43536436,2283.0,2282.2,2.513]
[1770190721909,3.76398849,2283.0,2282.2,2.513]
[1770190722109,3.76398849,2283.0,2282.3,2.45565316]
[1770190723704,1.43536436,2282.4,2281.5,2.56537316]
[1770190723909,1.43536436,2281.7,2280.8,0.10975]
[1770190724210,40.8,2281.9,2281.1,1.43536436]
[1770190724401,4.055,2282.1,2281.2,0.10973]
[1770190724605,4.055,2282.1,2281.2,2.73655029]
[1770190724908,4.06057814,2282.1,2281.3,2.62682029]
[1770190725304,4.06057814,2282.1,2281.4,2.62682029]
[1770190725501,1.43536436,2281.9,2281.3,2.62682029]
[1770190725707,3.76398849,2281.9,2281.3,2.62682029]
[1770190725905,2.32862413,2281.8,2281.4,2.62682029]
[1770190726202,1.43536436,2281.7,2281.2,2.56898797]
[1770190726509,4.06057814,2282.1,2281.2,2.56898797]
[1770190727107,2.03207158,2282.0,2280.7,2.45565316]
[1770190728011,2.03207158,2281.6,2280.2,2.45565316]
[1770190728213,2.32862413,2281.5,2280.2,2.46032903]
[1770190730408,2.03207158,2281.6,2280.2,2.46032903]
[1770190730409,2.32862413,2281.3,2280.2,2.46032903]
[1770190730616,2.32862413,2281.1,2280.2,2.46032903]
[1770190730913,5.243,2281.2,2280.2,2.46032903]
[1770190732615,7.75241164,2281.2,2280.2,2.46032903]
[1770190733015,2.50941164,2281.2,2280.2,2.46032903]
[1770190733216,8.438,2281.1,2280.2,2.46032903]
[1770190733612,2.50941164,2281.0,2280.2,2.46032903]
[1770190733811,2.50941164,2281.0,2280.2,0.00467587]
[1770190735416,2.03207158,2280.8,2279.4,2.50625351]
[1770190735721,2.50941164,2280.7,2279.4,2.50625351]
[1770190736216,5.4,2280.6,2279.4,2.50625351]
[1770190736419,7.90941164,2280.6,2279.4,2.50942114]
[1770190736619,2.50941164,2280.5,2279.4,2.50942114]
[1770190736916,2.51374292,2280.5,2279.4,2.50942114]
[1770190739720,6.49173842,2282.4,2279.4,2.50942114]
[1770190739920,2.5131151,2283.6,2281.9,2.03207158]
[1770190740121,2.5131151,2283.6,2281.9,7.27707158]
[1770190740423,2.5131151,2284.0,2282.8,0.02658087]
[1770190740619,2.5131151,2284.0,2283.1,2.58193165]
[1770190740819,12.98261621,2283.9,2283.1,2.58532563]
[1770190741315,2.49982466,2283.8,2283.1,0.00339398]
[1770190741621,2.49982466,2283.7,2283.1,0.00339398]
[1770190741821,15.48244087,2283.7,2283.1,0.00339398]
[1770190743619,2.51272421,2283.6,2283.1,0.00339398]
[1770190745925,17.14541695,2283.3,2282.5,0.10967]
[1770190746118,2.5131151,2283.3,2282.5,0.10967]
[1770190746721,2.5131151,2287.7,2283.7,0.10961]
[1770190747016,13.09624869,2288.4,2286.1,0.1095]
[1770190747017,2.5131151,2288.0,2286.1,0.1095]
[1770190747216,2.5131151,2288.0,2286.9,0.10946]
[1770190747619,2.5131151,2288.5,2286.9,0.11296687]
[1770190747820,2.5131151,2288.5,2286.9,0.00350687]
[1770190747821,2.51681674,2288.0,2286.9,0.00350687]
[1770190748319,14.63230185,2287.9,2286.9,0.00350687]
[1770190748719,17.14541695,2287.9,2286.9,0.00350687]
[1770190748926,2.5131151,2287.9,2286.9,0.00350687]
[1770190749425,2.5131151,2287.7,2286.9,0.00350687]
[1770190749627,17.14541695,2287.7,2286.9,0.00350687]
[1770190750322,14.63230185,2287.6,2286.9,0.00350687]
[1770190750628,17.14541695,2287.7,2286.9,0.00350687]
[1770190751529,14.63230185,2287.2,2286.9,0.00350687]
[1770190751721,2.5131151,2287.6,2286.9,0.00350687]
[1770190752027,14.63230185,2287.5,2286.9,0.00350687]
[1770190752721,2.5131151,2287.6,2286.9,0.00350687]
[1770190753821,0.00370164,2288.0,2287.3,0.10944]
[1770190754028,2.5131151,2288.5,2287.3,0.10944]
[1770190754923,2.51746209,2288.5,2286.9,0.00350687]
[1770190755123,2.5131151,2288.0,2286.9,0.00350687]
[1770190755622,2.5131151,2287.5,2286.9,0.00350687]
[1770190756022,17.14541695,2287.4,2286.9,0.00350687]
[1770190756228,2.5131151,2287.4,2286.9,0.00350687]
[1770190756428,17.06932268,2287.4,2286.9,0.00350687]
[1770190757326,14.63230185,2287.4,2286.9,0.00350687]
[1770190757832,40.8,2288.2,2286.9,0.01188317]
[1770190758130,40.8,2288.2,2286.9,0.00350687]
[1770190758131,14.63230185,2287.9,2286.9,0.00350687]
[1770190758429,2.50892695,2287.9,2286.9,0.00350687]
[1770190758631,2.49080461,2287.5,2286.9,0.00350687]
[1770190758826,2.49080461,2287.5,2285.9,0.05359316]
[1770190759127,2.49080461,2287.3,2286.0,0.1095]
[1770190759428,2.49080461,2287.3,2285.2,0.27610003]
[1770190759429,2.49080461,2287.2,2285.2,0.27610003]
[1770190759629,2.49080461,2287.0,2285.3,0.10954]
[1770190759832,2.49080461,2287.0,2285.3,0.11398301]
[1770190760029,2.49080461,2286.7,2285.3,0.28054304]
[1770190760331,2.49080461,2286.6,2285.3,0.28054304]
[1770190760532,2.49080461,2286.4,2285.3,0.28054304]
[1770190760930,2.3939281,2286.2,2285.3,0.28054304]
[1770190761624,2.3939281,2286.2,2285.3,0.11398301]
[1770190762425,2.39573914,2286.0,2285.3,0.11398301]
[1770190762826,14.63230185,2285.9,2285.3,0.11398301]
[1770190763732,2.39573914,2285.9,2285.3,0.11398301]
[1770190763931,2.39573914,2285.7,2285.3,0.11398301]
[1770190764234,2.39573914,2285.7,2284.9,0.22542343]
[1770190764428,40.8,2286.6,2285.3,0.10954]
[1770190764429,2.39609058,2286.5,2285.3,0.10954]
[1770190764633,2.39609058,2286.0,2285.3,0.10954]
[1770190765125,14.63230185,2285.8,2285.3,0.11473108]
[1770190765533,14.63230185,2285.7,2285.3,0.11473108]
[1770190765733,14.63230185,2285.9,2285.3,0.11473108]
[1770190765933,17.02839243,2285.9,2285.3,0.11473108]
[1770190766134,2.39609058,2285.8,2285.3,0.11473108]
[1770190766331,2.50845085,2288.6,2287.3,0.00237366]
[1770190766531,2.50845085,2288.6,2287.4,0.10943]
[1770190766736,2.50726402,2288.4,2287.4,0.10943]
[1770190767231,2.51128128,2288.4,2287.4,0.10943]
[1770190767432,2.51128128,2288.4,2287.4,0.00461565]
[1770190767637,2.51128128,2288.4,2286.4,3.77614851]
[1770190767638,2.5049562,2288.2,2286.3,0.00698931]
[1770190768332,2.5049562,2288.2,2286.4,2.51743234]
[1770190768536,2.5049562,2288.2,2286.8,0.10947]
[1770190770339,40.8,2288.5,2286.8,0.10947]
[1770190770340,2.50845085,2291.0,2288.1,2.03207158]
[1770190770638,2.03207158,2291.4,2289.6,0.10933]
[1770190770836,40.8,2291.3,2289.7,0.10933]
[1770190771036,40.8,2291.3,2289.7,5.0062793]
[1770190771238,2.03207158,2291.8,2289.9,0.10932]
[1770190771437,0.00446522,2291.8,2290.2,2.37951696]
[1770190771638,0.00446522,2291.8,2290.3,5.0062493]
[1770190771839,1e-08,2291.8,2290.9,0.10927]
[1770190772040,1e-08,2291.8,2290.4,4.8969493]
[1770190772337,2.03207158,2294.2,2292.3,0.1092]
[1770190772537,2.27207567,2294.3,2291.8,2.52246981]
[1770190772743,2.27207567,2294.3,2291.9,2.35867846]
[1770190773036,2.27207567,2294.3,2292.0,2.35867846]
[1770190773236,2.27207567,2294.1,2292.0,0.00382379]
[1770190773438,2.27207567,2293.7,2292.0,0.00382379]
[1770190773644,2.38121567,2293.7,2292.0,0.00382379]
[1770190774350,2.27207567,2293.7,2292.0,0.00382379]
[1770190774842,2.38121567,2293.7,2292.0,0.00382379]
[1770190775046,4.374,2293.8,2290.8,2.3682094]
[1770190775047,2.27207567,2293.4,2290.8,2.3682094]
[1770190775243,2.38122567,2293.4,2290.8,2.3682094]
[1770190775444,2.38122567,2293.4,2290.4,0.10929]
[1770190775745,2.27207567,2293.2,2290.4,2.4774994]
[1770190775941,2.27207567,2293.0,2290.4,2.4774994]
[1770190776136,2.27207567,2292.8,2290.4,2.48061217]
[1770190776343,2.27207567,2292.6,2290.4,2.48061217]
[1770190776540,2.27636446,2292.6,2290.4,2.48061217]
[1770190776944,2.27636446,2292.6,2290.4,0.11240277]
[1770190777342,2.27636446,2292.6,2290.4,0.00311277]
[1770190777548,2.27207567,2292.3,2290.4,0.00311277]
[1770190777741,40.8,2291.8,2290.4,0.00311277]
[1770190777944,2.27207567,2291.7,2290.4,0.00311277]
[1770190779249,2.27207567,2291.7,2289.6,0.10933]
[1770190779452,2.27207567,2291.7,2289.6,2.48884696]
[1770190780349,2.27207567,2291.7,2289.6,2.49414978]
[1770190781047,2.27207567,2291.5,2289.6,0.00530282]
[1770190781248,2.27207567,2291.3,2289.6,0.00530282]
[1770190781649,2.27207567,2291.1,2289.6,0.00530282]
[1770190783248,40.8,2291.0,2289.6,0.00530282]
[1770190783444,2.27207567,2290.9,2289.6,0.00530282]
[1770190783646,2.27550321,2290.9,2289.6,0.00530282]
[1770190787754,2.27550321,2290.9,2289.3,0.10935]
[1770190788751,40.8,2290.4,2289.3,0.00349828]
[1770190789053,2.27207567,2290.2,2289.3,0.00349828]
[1770190789250,2.27207567,2290.0,2289.3,0.00349828]
[1770190790858,2.44427829,2290.3,2289.3,0.00349828]
[1770190791549,2.44427829,2290.3,2289.3,0.11284828]
[1770190793753,2.44427829,2290.3,2289.4,0.10934]
[1770190794253,40.8,2290.4,2289.4,4.89484112]
[1770190794455,40.8,2290.4,2289.5,2.38226624]
[1770190794654,2.44427829,2290.7,2289.5,4.89484112]
[1770190794854,2.44427829,2290.7,2289.6,2.38226624]
[1770190795252,0.00342754,2290.9,2290.0,2.49157624]
[1770190795463,2.44770583,2290.9,2290.0,0.10931]
[1770190795760,43.24770583,2290.9,2290.0,0.10931]
[1770190796259,43.24770583,2290.9,2290.1,7.98639986]
[1770190797259,43.24770583,2290.9,2290.2,7.98639986]
[1770190797460,2.30534648,2290.8,2290.1,2.51257488]
[1770190797859,2.30534648,2290.8,2290.2,5.52716187]
[1770190798058,2.30534648,2290.8,2290.1,2.51257488]
[1770190798360,2.30534648,2290.8,2290.2,8.04817367]
[1770190798558,2.30534648,2290.8,2290.2,2.51257488]
[1770190798858,2.30534648,2290.8,2290.0,5.13445977]
[1770190798859,2.30534648,2290.8,2290.0,3.76886233]
[1770190799055,2.30534648,2290.8,2289.9,3.76886233]
[1770190799361,2.30534648,2290.8,2289.6,5.02514977]
[1770190800455,2.30534648,2290.8,2289.7,5.02514977]
[1770190800760,2.30534648,2290.8,2289.5,5.02514977]
[1770190800960,2.30534648,2290.8,2289.3,5.02864805]
[1770190801161,40.91269754,2290.9,2289.3,5.02864805]
[1770190801162,0.0092474,2290.6,2289.3,0.00349828]
[1770190801458,0.0092474,2290.6,2289.3,2.5050789]
[1770190801856,41.654,2290.5,2289.3,2.5050789]
[1770190802060,41.654,2290.5,2289.4,2.50158062]
[1770190803262,41.654,2290.5,2289.5,2.50620432]
[1770190803462,41.654,2290.5,2289.6,2.50620432]
[1770190803657,40.8,2290.5,2289.9,2.61552432]
[1770190803863,0.00342754,2290.9,2289.9,2.61552432]
[1770190804156,0.00342754,2290.9,2290.1,2.50620432]
[1770190804362,40.8,2290.8,2290.2,2.50620432]
[1770190804562,40.8,2290.8,2290.3,2.50620432]
[1770190805064,4.37,2291.6,2290.5,2.50620432]
[1770190805264,4.179,2291.5,2290.5,7.53135409]
[1770190805463,40.8,2291.4,2290.5,7.53135409]
[1770190805963,40.8,2291.4,2290.4,0.10929]
[1770190805964,40.80551113,2291.4,2290.7,2.50620432]
[1770190806366,40.80551113,2291.4,2290.8,2.50620432]
[1770190806865,0.00551113,2291.4,2290.9,2.50620432]
[1770190807067,4.043,2292.0,2290.9,2.50620432]
[1770190807970,40.8,2291.9,2291.2,2.50620432]
[1770190808267,40.8,2291.9,2291.3,2.50620432]
[1770190809669,40.8,2291.9,2291.5,2.50620432]
[1770190810069,0.0043302,2292.0,2291.5,2.50620432]
[1770190810771,40.8,2291.9,2291.5,2.50620432]
[1770190810965,40.8,2291.9,2291.6,5.0080353]
[1770190811168,40.8,2291.9,2291.5,2.50620432]
[1770190811665,40.8,2291.9,2291.3,5.02514977]
[1770190811868,40.8,2291.9,2291.2,0.00489159]
[1770190812372,40.8,2291.9,2290.9,2.50620432]
[1770190812572,40.8,2291.9,2290.7,4.96437844]
[1770190812868,40.8,2291.9,2290.6,2.50620432]
[1770190813069,40.8,2291.9,2290.7,4.96521389]
[1770190813270,40.8,2291.9,2290.6,2.50620432]
[1770190813471,40.8,2291.9,2290.7,4.95033337]
[1770190814372,40.8,2291.9,2290.6,2.5115644]
[1770190815374,0.10924,2291.6,2290.6,0.00536008]
[1770190815577,4.19,2291.5,2290.0,2.50620432]
[1770190815880,8.759,2291.4,2289.9,4.93784134]
[1770190816183,8.759,2291.4,2289.7,2.50620432]
[1770190816184,4.39,2291.2,2289.7,2.50620432]
[1770190816480,4.39,2291.2,2289.7,2.51083156]
[1770190817276,0.10926,2291.1,2289.7,0.00462724]
[1770190819180,0.10927,2291.0,2289.7,0.00462724]
[1770190821182,0.10927,2290.9,2289.7,0.00462724]
[1770190821682,40.8,2290.5,2289.7,0.00462724]
[1770190821882,6.065,2290.4,2289.7,0.00462724]
[1770190822784,6.065,2290.4,2289.3,2.50727794]
[1770190823483,0.10931,2290.2,2288.7,2.50727794]
[1770190823683,6.065,2290.4,2288.7,2.50727794]
[1770190823984,0.10931,2290.0,2288.7,2.51055181]
[1770190828982,0.10931,2290.0,2288.7,0.00327387]
[1770190829387,0.10932,2289.9,2288.7,0.00327387]
[1770190829685,0.10932,2289.8,2288.7,0.00327387]
[1770190830089,40.8,2289.7,2288.7,0.00327387]
[1770190830286,45.29933,2289.7,2288.7,0.00327387]
[1770190830686,40.90933,2289.7,2288.7,2.51055181]
[1770190830885,8.556,2289.6,2288.7,2.51055181]
[1770190831091,8.556,2289.6,2288.7,0.00327387]
[1770190831388,8.556,2289.6,2288.7,2.51055181]
[1770190831989,40.90933,2289.7,2288.7,2.51055181]
[1770190832190,8.555,2289.6,2288.7,2.51055181]
[1770190835595,40.8,2289.7,2288.7,2.51055181]
[1770190835892,45.172,2289.7,2288.7,2.51055181]
[1770190836889,40.8,2289.7,2288.7,2.51055181]
[1770190837092,40.8,2289.7,2288.7,2.61992181]
[1770190837394,8.554,2290.1,2288.7,2.61992181]
[1770190838290,40.8,2290.0,2288.7,2.61992181]
[1770190838692,40.8,2290.0,2288.9,2.50727794]
[1770190839592,40.8,2290.0,2289.0,2.50727794]
[1770190840188,40.8,2290.0,2288.9,4.82547528]
[1770190840189,40.8,2290.0,2289.1,2.50727794]
[1770190840897,0.00495004,2290.2,2289.3,2.40218116]
[1770190841195,4.372,2290.6,2289.3,2.40218116]
[1770190841500,40.8,2290.5,2289.3,2.40218116]
[1770190841695,4.372,2290.6,2289.5,2.29284116]
[1770190841893,4.372,2290.6,2289.5,2.40218116]
[1770190842198,42.66896769,2290.6,2289.7,2.29284116]
[1770190842393,1.328,2290.8,2289.7,2.29284116]
[1770190843199,2.39777548,2291.0,2289.8,2.29284116]
[1770190843494,40.8,2290.9,2289.8,2.40216116]
[1770190843692,40.8,2290.9,2289.9,2.29284116]
[1770190844497,40.8,2290.9,2290.1,2.29284116]
[1770190845100,40.8,2290.9,2290.1,6.13800219]
[1770190845293,40.8,2290.9,2290.2,2.29284116]
[1770190845599,0.00353058,2291.0,2290.2,2.29284116]
[1770190846298,0.00353058,2291.0,2290.3,2.29284116]
[1770190846800,2.40130606,2291.0,2290.1,0.10931]
[1770190846997,2.40130606,2291.0,2290.1,2.40215116]
[1770190848001,0.00353058,2291.0,2290.4,2.29284116]
[1770190848298,0.00353058,2291.0,2290.4,0.00408082]
[1770190849593,0.00353058,2291.0,2290.5,0.10929]
[1770190850402,2.40130606,2291.0,2289.9,2.29284116]
[1770190851103,2.48779216,2290.8,2289.9,2.29284116]
[1770190851496,2.48779216,2290.8,2289.9,2.29675762]
[1770190854008,2.48779216,2290.8,2289.9,0.00391646]
[1770190855506,2.48779216,2290.7,2289.9,0.00391646]
[1770190856308,2.48779216,2290.2,2289.1,3.84516103]
[1770190856508,2.48779216,2290.0,2288.9,2.42481689]
[1770190856707,40.8,2290.0,2289.4,2.55331444]
[1770190856912,2.27768031,2290.5,2289.6,2.55330444]
[1770190857411,2.27768031,2290.5,2289.7,0.10932]
[1770190857612,4.169,2290.7,2289.7,2.55329444]
[1770190857812,0.00353058,2291.0,2290.0,2.55328444]
[1770190858007,40.8,2290.9,2290.0,2.55328444]
[1770190858312,0.00353058,2291.0,2290.2,2.44397444]
[1770190858707,40.80353058,2291.0,2290.2,2.44397444]
[1770190859107,40.80353058,2291.0,2290.2,2.55327444]
[1770190859313,2.27768031,2291.4,2290.5,2.44397444]
[1770190859711,4.49768031,2291.6,2290.5,2.44397444]
[1770190859908,2.27768031,2291.5,2290.4,0.10929]
[1770190860412,2.2807692,2291.5,2290.4,0.10929]
[1770190860711,2.27768031,2291.3,2290.4,0.10929]
[1770190860907,2.27768031,2291.3,2290.2,7.31127701]
[1770190861112,2.27768031,2291.3,2289.7,2.67240869]
[1770190862213,2.27768031,2291.3,2289.8,2.56307869]
[1770190862604,2.27768031,2291.3,2289.8,7.31744664]
[1770190862809,2.27768031,2291.3,2289.8,2.56307869]
[1770190864107,2.27768031,2291.3,2289.9,2.56307869]
[1770190864610,2.27768031,2291.3,2289.8,8.60329534]
[1770190864809,40.8,2291.4,2289.2,2.44397444]
[1770190864810,2.27768031,2290.3,2289.2,2.44397444]
[1770190865010,2.27768031,2290.1,2289.2,2.44397444]
[1770190865809,2.27768031,2290.1,2289.2,0.0033021]
[1770190866308,2.27768031,2289.9,2289.2,0.0033021]
[1770190867111,40.8,2290.0,2289.2,2.44727654]
[1770190867313,40.8,2290.0,2289.4,4.36560001]
[1770190867718,43.07768031,2290.0,2289.5,4.36560001]
[1770190867919,43.07768031,2290.0,2289.4,4.36560001]
[1770190868418,2.27768031,2289.9,2289.5,4.36560001]
[1770190868618,2.27768031,2289.9,2289.4,4.36560001]
[1770190869117,2.27768031,2289.9,2289.5,4.36560001]
[1770190869318,2.27768031,2289.9,2289.4,4.36560001]
[1770190869521,6.44768031,2289.9,2289.4,4.36560001]
[1770190869719,6.44768031,2289.9,2289.5,4.36560001]
[1770190870318,6.44768031,2289.9,2289.5,0.62805976]
[1770190871120,2.27768031,2289.8,2289.2,0.0033021]
[1770190871320,2.28234088,2289.8,2288.6,7.46912421]
[1770190871622,2.28234088,2289.8,2288.6,2.44397444]
[1770190872419,2.28234088,2289.8,2288.6,2.4478643]
[1770190873021,2.28234088,2289.8,2288.6,0.00388986]
[1770190873721,2.27768031,2289.6,2288.6,0.00388986]
[1770190874121,2.27768031,2289.6,2288.6,2.4478643]
[1770190874521,4.371,2289.7,2288.6,2.4478643]
[1770190874823,4.183,2289.6,2288.6,2.4478643]
[1770190875017,0.00466057,2289.8,2288.6,2.4478643]
[1770190876622,0.00466057,2289.8,2288.8,2.44397444]
[1770190877621,2.28234088,2289.8,2288.8,2.44397444]
[1770190883728,2.28234088,2289.8,2288.7,0.10937]
[1770190884427,2.28234088,2289.8,2288.7,2.61228004]
[1770190887224,2.28234088,2289.8,2288.9,2.50291004]
[1770190888828,40.8,2290.0,2288.9,2.50291004]
[1770190889022,4.371,2291.0,2288.9,2.50291004]
[1770190889023,9.55942637,2291.1,2289.0,2.87754533]
[1770190889223,4.147,2291.1,2289.1,9.67601927]
[1770190889424,0.854,2291.0,2289.8,0.10932]
[1770190889630,40.8,2290.9,2289.9,0.13661995]
[1770190889826,40.8036274,2290.9,2290.0,0.13661995]
[1770190890027,40.8036274,2290.9,2290.1,0.13661995]
[1770190890228,40.8036274,2290.9,2289.9,0.10932]
[1770190890425,40.8036274,2290.9,2290.0,0.13661586]
[1770190890623,40.8036274,2290.9,2290.1,0.13661586]
[1770190890829,43.29170519,2290.9,2289.9,0.18571632]
[1770190891129,43.29170519,2290.9,2290.0,0.13661509]
[1770190891328,43.29170519,2290.9,2290.1,0.13661509]
[1770190891528,43.29170519,2290.9,2290.0,0.07639632]
[1770190891730,43.29170519,2290.9,2290.1,0.13661482]
[1770190891932,43.29170519,2290.9,2290.2,0.13661482]
[1770190892133,43.29170519,2290.9,2290.0,0.07639632]
[1770190892427,43.29170519,2290.9,2290.1,0.30146479]
[1770190892629,2.48807779,2290.8,2290.0,4.92216749]
[1770190892830,2.48807779,2290.8,2290.1,0.13661556]
[1770190893031,6.64107779,2290.7,2289.8,0.05554063]
[1770190893232,6.64107779,2290.7,2289.9,0.1366134]
[1770190893433,6.64007779,2291.2,2290.2,0.1093]
[1770190893732,4.35907779,2291.2,2290.3,0.1366134]
[1770190894034,43.30928644,2291.1,2290.2,0.1093]
[1770190894233,43.30928644,2291.1,2290.3,0.13659727]
[1770190894532,43.30928644,2291.1,2290.4,0.13659288]
[1770190894533,4.158,2291.0,2290.4,0.13659288]
[1770190894731,4.158,2291.0,2290.5,0.13659288]
[1770190894931,4.158,2291.0,2290.3,0.11318685]
[1770190895132,4.158,2291.0,2290.4,0.13658839]
[1770190895333,6.66728644,2291.0,2290.3,0.11318685]
[1770190895530,6.66728644,2291.0,2290.4,0.13658839]
[1770190895735,40.80345987,2291.1,2290.3,0.11318685]
[1770190895935,4.161,2291.0,2290.4,0.13658689]
[1770190896233,6.67028644,2291.0,2290.5,0.13658689]
[1770190896435,6.67028644,2291.0,2290.3,5.01938852]
[1770190896737,4.163,2290.9,2290.4,0.24587653]
[1770190896933,4.163,2290.9,2290.4,0.10929]
[1770190897138,2.51274631,2291.1,2290.4,0.10929]
[1770190897436,0.854,2291.0,2290.6,0.10928]
[1770190899039,3.36328644,2291.0,2290.6,0.10928]
[1770190899537,0.854,2291.0,2290.6,0.10928]
[1770190900039,2.50928644,2290.9,2290.6,0.10928]
[1770190901641,2.50928644,2290.8,2290.6,0.10565259]
[1770190903239,2.50928644,2290.8,2290.3,0.00388685]
[1770190904541,2.50928644,2290.8,2290.6,0.10928]
[1770190904736,2.48807779,2291.0,2290.6,0.10928]
[1770190906139,2.48807779,2291.0,2289.9,0.10932]
[1770190906341,2.48807779,2290.8,2289.9,0.10932]
[1770190906544,43.28807779,2290.7,2289.9,0.10932]
[1770190907044,2.48807779,2290.6,2289.9,0.11814275]
[1770190907239,6.63307779,2290.6,2289.9,0.11814275]
[1770190907438,6.63307779,2290.6,2289.9,0.1142559]
[1770190907645,6.63307779,2290.6,2290.0,0.00388685]
[1770190909148,6.63907779,2290.6,2290.0,0.00388685]
[1770190909342,2.48807779,2290.6,2290.0,0.00388685]
[1770190909644,6.63807779,2290.6,2290.0,0.00388685]
[1770190911141,2.41806695,2290.8,2290.3,0.11318685]
[1770190911348,2.41806695,2290.8,2290.3,0.1093]
[1770190911546,3.43406695,2290.8,2290.4,0.00388685]
[1770190911948,3.43406695,2290.8,2290.5,0.00388685]
[1770190912148,3.43406695,2290.8,2290.4,0.00388685]
[1770190912349,6.57406695,2290.8,2290.4,0.00388685]
[1770190912552,6.57406695,2290.8,2290.5,0.00388685]
[1770190912848,2.41806695,2290.8,2290.4,0.00388685]
[1770190913050,4.158,2290.8,2290.4,0.11317685]
[1770190913249,6.57606695,2290.8,2290.5,0.11316685]
[1770190913450,6.57606695,2290.8,2290.5,0.10928]
[1770190913651,6.57606695,2290.8,2290.5,0.11316685]
[1770190914351,2.41806695,2290.8,2290.5,0.11316685]
[1770190914551,4.165,2290.8,2290.6,0.00388685]
[1770190914750,6.58306695,2290.8,2290.6,0.00388685]
[1770190914946,2.508476,2291.9,2291.0,0.10926]
[1770190915147,2.453846,2291.6,2289.9,3.86210059]
[1770190915448,2.453846,2291.4,2290.0,0.13659561]
[1770190915651,2.453846,2291.4,2289.9,0.0049359]
[1770190915852,2.453846,2291.2,2290.0,0.13662392]
[1770190916151,2.45945138,2291.2,2289.9,4.87088618]
[1770190916353,2.45945138,2291.2,2290.0,0.1366268]
[1770190916549,2.45945138,2291.2,2289.9,4.87088618]
[1770190916748,2.45945138,2291.2,2290.0,0.13662689]
[1770190916949,2.45945138,2291.2,2289.9,4.87088618]
[1770190917151,2.45945138,2291.2,2290.0,4.86595028]
[1770190917853,2.45945138,2291.2,2289.9,0.0049359]
[1770190920653,2.33866082,2291.0,2289.9,0.0049359]
[1770190920955,2.33866082,2290.8,2290.0,3.99378531]
[1770190921150,2.33866082,2290.8,2289.9,0.1142459]
[1770190923755,2.33866082,2290.8,2289.5,7.33208878]
[1770190923756,2.33866082,2290.8,2289.5,3.85716469]
[1770190923951,2.33866082,2290.8,2289.4,3.85716469]
[1770190924156,2.33866082,2290.8,2289.5,0.13665119]
[1770190924360,2.33866082,2290.8,2289.4,3.85716469]
[1770190924856,2.33866082,2290.8,2289.5,2.58337004]
[1770190925563,2.33866082,2290.8,2289.4,0.00363644]
[1770190925564,2.44793082,2290.8,2289.4,0.00363644]
[1770190925863,2.44793082,2290.8,2289.3,2.58337004]
[1770190926063,2.44793082,2290.8,2289.2,2.58337004]
[1770190926466,2.33866082,2290.6,2289.2,2.58337004]
[1770190926661,2.33866082,2290.6,2289.2,2.5867237]
[1770190926964,2.33866082,2290.4,2289.4,4.89030905]
[1770190927164,2.33866082,2290.2,2289.4,4.89030905]
[1770190927356,2.33866082,2290.2,2289.5,2.30693901]
[1770190927357,4.202,2290.1,2289.5,2.30693901]
[1770190927560,2.33866082,2290.4,2289.5,2.30693901]
[1770190927858,2.33866082,2290.2,2289.4,2.69271004]
[1770190928059,2.33866082,2290.2,2289.4,0.10934]
[1770190928264,2.33866082,2290.2,2289.3,2.58337004]
[1770190928464,2.33866082,2290.0,2289.2,2.5867237]
[1770190928667,2.33866082,2290.0,2289.3,0.13666211]
[1770190928863,2.33866082,2290.0,2288.8,0.65462634]
[1770190929164,6.39111308,2289.7,2288.1,2.5090859]
[1770190929362,6.39111308,2289.7,2287.2,9.53354735]
[1770190929363,6.39111308,2289.7,2287.5,7.53423567]
[1770190929666,36.49,2289.6,2287.7,2.5090859]
[1770190929867,36.49,2289.6,2287.7,2.51373323]
[1770190930068,7.484,2289.5,2287.7,2.51373323]
[1770190930368,0.02272906,2289.3,2287.7,2.51373323]
[1770190931263,0.02272906,2289.3,2287.7,2.62315323]
[1770190931464,5.963,2289.2,2287.7,2.62315323]
[1770190931769,0.02272906,2289.1,2287.7,2.62315323]
[1770190931969,40.82272906,2289.0,2287.7,2.62315323]
[1770190932170,40.8,2289.0,2287.7,2.62315323]
[1770190933368,40.83947614,2289.0,2287.7,2.62315323]